[Event "*** SCC Grand Prix: Titled Tuesday Blitz"]
[Site "Chess.com"]
[Date "2020.06.02"]
[Round "2"]
[White "goofypenguin96"]
[Black "Unknown_IM"]
[Result "1-0"]
[WhiteElo "2222"]
[BlackElo "2510"]
[TimeControl "180+1"]
[EndTime "10:16:17 PDT"]
[Termination "goofypenguin96 won on time"]

1. g3 {[%clk 0:03:00.9]} 1... Nf6 {[%clk 0:02:58.8]} 2. Bg2 {[%clk 0:03:01.4]}
2... e6 {[%clk 0:02:58.7]} 3. Nf3 {[%clk 0:03:02.1]} 3... b6 {[%clk 0:02:56.6]}
4. d4 {[%clk 0:03:02.1]} 4... Bb7 {[%clk 0:02:56.6]} 5. O-O {[%clk 0:03:02.5]}
5... c5 {[%clk 0:02:56.7]} 6. c3 {[%clk 0:03:02.7]} 6... Be7 {[%clk 0:02:55.9]}
7. Bg5 {[%clk 0:03:02.3]} 7... O-O {[%clk 0:02:54.6]} 8. Nbd2 {[%clk 0:03:02.2]}
8... d6 {[%clk 0:02:52.8]} 9. Re1 {[%clk 0:03:01.8]} 9... Nbd7 {[%clk
0:02:46.9]} 10. e4 {[%clk 0:03:01.2]} 10... h6 {[%clk 0:02:45]} 11. Bxf6 {[%clk
0:02:54.4]} 11... Nxf6 {[%clk 0:02:44.2]} 12. Qe2 {[%clk 0:02:50.3]} 12... Qc7
{[%clk 0:02:39]} 13. Rad1 {[%clk 0:02:48.8]} 13... Rfd8 {[%clk 0:02:36]} 14. h4
{[%clk 0:02:38.4]} 14... a6 {[%clk 0:02:28.9]} 15. Nh2 {[%clk 0:02:29]} 15... b5
{[%clk 0:02:06.7]} 16. d5 {[%clk 0:02:20.6]} 16... Bf8 {[%clk 0:01:43]} 17. Ndf1
{[%clk 0:02:15.2]} 17... exd5 {[%clk 0:01:39.4]} 18. exd5 {[%clk 0:02:16.1]}
18... Re8 {[%clk 0:01:38.9]} 19. Qd2 {[%clk 0:02:13.5]} 19... c4 {[%clk
0:01:24.7]} 20. Ne3 {[%clk 0:02:08.9]} 20... Ne4 {[%clk 0:01:19.4]} 21. Qc2
{[%clk 0:02:02.7]} 21... Nc5 {[%clk 0:01:17.8]} 22. Bf1 {[%clk 0:01:52.4]} 22...
g6 {[%clk 0:01:12.9]} 23. h5 {[%clk 0:01:48.5]} 23... gxh5 {[%clk 0:00:40.3]}
24. Nf3 {[%clk 0:01:36.8]} 24... Ne4 {[%clk 0:00:34.7]} 25. Nh4 {[%clk
0:01:31.9]} 25... Re5 {[%clk 0:00:20.4]} 26. Bg2 {[%clk 0:01:19]} 26... Rae8
{[%clk 0:00:17.6]} 27. f4 {[%clk 0:01:17.9]} 1-0

[Event "*** SCC Grand Prix: Titled Tuesday Blitz"]
[Site "Chess.com"]
[Date "2020.06.02"]
[Round "2"]
[White "Omk124"]
[Black "FeketeBarika"]
[Result "1-0"]
[WhiteElo "2446"]
[BlackElo "2226"]
[TimeControl "180+1"]
[EndTime "10:16:20 PDT"]
[Termination "Omk124 won by resignation"]

1. e4 {[%clk 0:03:00.9]} 1... e6 {[%clk 0:02:51.7]} 2. d4 {[%clk 0:03:00.5]}
2... d5 {[%clk 0:02:52.6]} 3. Nd2 {[%clk 0:03:01]} 3... Be7 {[%clk 0:02:48]} 4.
c3 {[%clk 0:02:57.9]} 4... c5 {[%clk 0:02:45.3]} 5. exd5 {[%clk 0:02:58]} 5...
Qxd5 {[%clk 0:02:44.3]} 6. Ngf3 {[%clk 0:02:56]} 6... Nd7 {[%clk 0:02:41.6]} 7.
Bc4 {[%clk 0:02:56]} 7... Qh5 {[%clk 0:02:35.7]} 8. O-O {[%clk 0:02:55.3]} 8...
Ngf6 {[%clk 0:02:32.5]} 9. Qb3 {[%clk 0:02:50.5]} 9... O-O {[%clk 0:02:29.7]}
10. Re1 {[%clk 0:02:44.7]} 10... cxd4 {[%clk 0:02:15.9]} 11. Nxd4 {[%clk
0:02:44.5]} 11... a6 {[%clk 0:01:12.9]} 12. N2f3 {[%clk 0:02:36.4]} 12... e5
{[%clk 0:01:10.8]} 13. Ne2 {[%clk 0:02:18.7]} 13... Nc5 {[%clk 0:01:08.4]} 14.
Qb6 {[%clk 0:02:02.6]} 14... Bg4 {[%clk 0:01:04.3]} 15. Ng3 {[%clk 0:02:02.1]}
15... Qg6 {[%clk 0:00:53.2]} 16. Nxe5 {[%clk 0:02:02.1]} 16... Qc2 {[%clk
0:00:52]} 17. Nxg4 {[%clk 0:01:52.1]} 17... Nxg4 {[%clk 0:00:50]} 18. Rxe7
{[%clk 0:01:52.6]} 18... Qxf2+ {[%clk 0:00:45.1]} 19. Kh1 {[%clk 0:01:52.4]}
19... Rae8 {[%clk 0:00:41.8]} 20. Bg5 {[%clk 0:01:43.8]} 20... Rxe7 {[%clk
0:00:16.9]} 21. Bxe7 {[%clk 0:01:42.7]} 21... Ne4 {[%clk 0:00:15.8]} 22. Qxf2
{[%clk 0:01:41.1]} 22... Nexf2+ {[%clk 0:00:14.7]} 23. Kg1 {[%clk 0:01:42]}
23... Re8 {[%clk 0:00:15]} 24. Bc5 {[%clk 0:01:41.3]} 24... Ne4 {[%clk
0:00:13.5]} 25. Nxe4 {[%clk 0:01:41.3]} 25... Rxe4 {[%clk 0:00:13.1]} 26. Bd4
{[%clk 0:01:42.2]} 26... b5 {[%clk 0:00:12.3]} 27. Bd3 {[%clk 0:01:42.6]} 27...
Re8 {[%clk 0:00:11.4]} 28. h3 {[%clk 0:01:43.1]} 28... Nh6 {[%clk 0:00:11.1]}
29. Kf2 {[%clk 0:01:43.2]} 29... g6 {[%clk 0:00:10.8]} 30. Re1 {[%clk
0:01:43.7]} 30... Rd8 {[%clk 0:00:10.6]} 31. Kf1 {[%clk 0:01:44.1]} 31... Rc8
{[%clk 0:00:10.4]} 32. Re7 {[%clk 0:01:44]} 32... Rf8 {[%clk 0:00:09.4]} 33. Ra7
{[%clk 0:01:43.8]} 33... a5 {[%clk 0:00:08.6]} 34. Rxa5 {[%clk 0:01:44]} 1-0

[Event "*** SCC Grand Prix: Titled Tuesday Blitz"]
[Site "Chess.com"]
[Date "2020.06.02"]
[Round "2"]
[White "Jojo_1608"]
[Black "mbojan"]
[Result "1/2-1/2"]
[WhiteElo "2166"]
[BlackElo "2610"]
[TimeControl "180+1"]
[EndTime "10:16:22 PDT"]
[Termination "Game drawn by repetition"]

1. d4 {[%clk 0:03:00.9]} 1... Nf6 {[%clk 0:02:59.9]} 2. c4 {[%clk 0:03:00.8]}
2... c5 {[%clk 0:02:59.9]} 3. d5 {[%clk 0:03:00.8]} 3... b5 {[%clk 0:02:59.7]}
4. cxb5 {[%clk 0:03:00.5]} 4... a6 {[%clk 0:03:00.2]} 5. b6 {[%clk 0:03:00.9]}
5... d6 {[%clk 0:02:59.9]} 6. Nc3 {[%clk 0:03:00.8]} 6... Nbd7 {[%clk
0:03:00.1]} 7. a4 {[%clk 0:03:00.9]} 7... Qxb6 {[%clk 0:02:59.9]} 8. a5 {[%clk
0:03:00.7]} 8... Qa7 {[%clk 0:03:00.4]} 9. e4 {[%clk 0:02:57.2]} 9... g6 {[%clk
0:03:00.7]} 10. Nf3 {[%clk 0:02:56.9]} 10... Bg7 {[%clk 0:03:01.2]} 11. Nd2
{[%clk 0:02:57.2]} 11... O-O {[%clk 0:03:01.3]} 12. Be2 {[%clk 0:02:57.4]} 12...
Rb8 {[%clk 0:03:01.9]} 13. O-O {[%clk 0:02:54.8]} 13... Ne8 {[%clk 0:03:02.2]}
14. Nc4 {[%clk 0:02:52.1]} 14... Nc7 {[%clk 0:03:02.3]} 15. Na4 {[%clk 0:02:33]}
15... Nb5 {[%clk 0:03:02.3]} 16. Nab6 {[%clk 0:02:32.7]} 16... Nxb6 {[%clk
0:03:00.2]} 17. Nxb6 {[%clk 0:02:32.5]} 17... Nd4 {[%clk 0:02:56.7]} 18. Be3
{[%clk 0:02:27.4]} 18... Kh8 {[%clk 0:02:52.7]} 19. Bc4 {[%clk 0:02:20.8]} 19...
f5 {[%clk 0:02:43.4]} 20. f3 {[%clk 0:02:07.5]} 20... Bd7 {[%clk 0:02:21.1]} 21.
Kh1 {[%clk 0:01:59.2]} 21... Bb5 {[%clk 0:02:20.4]} 22. Bxd4 {[%clk 0:01:54.7]}
22... Bxd4 {[%clk 0:02:19.2]} 23. Qe2 {[%clk 0:01:54.8]} 23... Bxc4 {[%clk
0:02:10]} 24. Nxc4 {[%clk 0:01:52.4]} 24... Rb4 {[%clk 0:02:05.2]} 25. Rab1
{[%clk 0:01:49.5]} 25... Qd7 {[%clk 0:02:01.4]} 26. exf5 {[%clk 0:01:38]} 26...
Qxf5 {[%clk 0:01:40.4]} 27. Nb6 {[%clk 0:01:28.2]} 27... Be5 {[%clk 0:01:09.5]}
28. Nc4 {[%clk 0:01:19.3]} 28... Bd4 {[%clk 0:00:40.9]} 29. Nb6 {[%clk
0:01:17.4]} 29... Be5 {[%clk 0:00:25.5]} 30. Nc4 {[%clk 0:01:16.6]} 30... Bf6
{[%clk 0:00:23.9]} 31. Nb6 {[%clk 0:01:13.6]} 31... Be5 {[%clk 0:00:11.2]}
1/2-1/2

[Event "*** SCC Grand Prix: Titled Tuesday Blitz"]
[Site "Chess.com"]
[Date "2020.06.02"]
[Round "2"]
[White "almo64"]
[Black "JosefineHeinemann"]
[Result "0-1"]
[WhiteElo "2806"]
[BlackElo "2551"]
[TimeControl "180+1"]
[EndTime "10:16:23 PDT"]
[Termination "JosefineHeinemann won by resignation"]

1. e4 {[%clk 0:03:00.9]} 1... e5 {[%clk 0:02:57.1]} 2. Nc3 {[%clk 0:02:59.5]}
2... Nf6 {[%clk 0:02:56.6]} 3. Bc4 {[%clk 0:02:59.8]} 3... Nxe4 {[%clk
0:02:55.5]} 4. Qh5 {[%clk 0:02:59.4]} 4... Nd6 {[%clk 0:02:50.2]} 5. Qxe5+
{[%clk 0:02:59.5]} 5... Qe7 {[%clk 0:02:50.2]} 6. Qxe7+ {[%clk 0:02:59.7]} 6...
Bxe7 {[%clk 0:02:51.1]} 7. Be2 {[%clk 0:02:59.8]} 7... Nf5 {[%clk 0:02:49.6]} 8.
Nf3 {[%clk 0:02:57.7]} 8... c6 {[%clk 0:02:47.7]} 9. g4 {[%clk 0:02:55]} 9...
Nh4 {[%clk 0:02:46.2]} 10. Nxh4 {[%clk 0:02:54.7]} 10... Bxh4 {[%clk 0:02:47.1]}
11. d4 {[%clk 0:02:54.5]} 11... d5 {[%clk 0:02:42.6]} 12. Bf4 {[%clk 0:02:50.3]}
12... Be6 {[%clk 0:02:35.4]} 13. Bg3 {[%clk 0:02:49.4]} 13... Bf6 {[%clk
0:02:27.7]} 14. O-O-O {[%clk 0:02:45.9]} 14... Nd7 {[%clk 0:02:26.8]} 15. h4
{[%clk 0:02:46.2]} 15... O-O-O {[%clk 0:02:22.8]} 16. f4 {[%clk 0:02:43]} 16...
g6 {[%clk 0:02:22.7]} 17. Rhf1 {[%clk 0:02:39.9]} 17... Nb6 {[%clk 0:02:21.5]}
18. f5 {[%clk 0:02:25.5]} 18... gxf5 {[%clk 0:02:22.4]} 19. g5 {[%clk
0:02:25.5]} 19... Be7 {[%clk 0:02:14.3]} 20. Bd3 {[%clk 0:02:25]} 20... h6
{[%clk 0:02:13]} 21. g6 {[%clk 0:02:06.7]} 21... fxg6 {[%clk 0:02:05.2]} 22.
Rde1 {[%clk 0:02:06.6]} 22... Kd7 {[%clk 0:02:04.9]} 23. h5 {[%clk 0:02:07]}
23... gxh5 {[%clk 0:02:01.7]} 24. Rxe6 {[%clk 0:01:59.9]} 24... Kxe6 {[%clk
0:02:00]} 25. Bxf5+ {[%clk 0:01:59.5]} 25... Kf7 {[%clk 0:02:00.2]} 26. Bc8+
{[%clk 0:01:45.2]} 26... Kg6 {[%clk 0:01:42.7]} 27. Bxb7 {[%clk 0:01:43]} 27...
Bg5+ {[%clk 0:01:42.6]} 28. Kd1 {[%clk 0:01:42.4]} 28... Rhf8 {[%clk 0:01:42.3]}
29. Rg1 {[%clk 0:01:42]} 29... Rf6 {[%clk 0:01:35.9]} 30. Be5 {[%clk 0:01:38.3]}
30... Re6 {[%clk 0:01:31.7]} 31. b3 {[%clk 0:01:38.5]} 31... Nd7 {[%clk
0:01:29.5]} 32. Bc7 {[%clk 0:01:33.9]} 32... Rf8 {[%clk 0:01:25.8]} 33. Ne2
{[%clk 0:01:33.2]} 33... Kh7 {[%clk 0:01:17.7]} 34. Ba6 {[%clk 0:01:32.5]} 34...
h4 {[%clk 0:01:11]} 35. Bd3+ {[%clk 0:01:31.4]} 35... Kh8 {[%clk 0:01:11.4]} 36.
Nf4 {[%clk 0:01:27.8]} 36... Bxf4 {[%clk 0:01:09.2]} 37. Ba5 {[%clk 0:01:01.3]}
37... h3 {[%clk 0:00:59.6]} 38. Rh1 {[%clk 0:00:57.9]} 38... h2 {[%clk
0:00:59.7]} 39. Be1 {[%clk 0:00:57.8]} 39... Rg8 {[%clk 0:00:56.8]} 40. Bf5
{[%clk 0:00:56.4]} 40... Rxe1+ {[%clk 0:00:51.6]} 0-1

[Event "*** SCC Grand Prix: Titled Tuesday Blitz"]
[Site "Chess.com"]
[Date "2020.06.02"]
[Round "2"]
[White "Illingworth"]
[Black "OnatB"]
[Result "1-0"]
[WhiteElo "2892"]
[BlackElo "2332"]
[TimeControl "180+1"]
[EndTime "10:16:25 PDT"]
[Termination "Illingworth won by resignation"]

1. d4 {[%clk 0:03:00.9]} 1... g6 {[%clk 0:03:00.9]} 2. e4 {[%clk 0:02:58.5]}
2... Bg7 {[%clk 0:03:01.8]} 3. Nf3 {[%clk 0:02:58.1]} 3... d6 {[%clk 0:02:59.8]}
4. Bc4 {[%clk 0:02:58.3]} 4... Nf6 {[%clk 0:02:58.8]} 5. Qe2 {[%clk 0:02:58.6]}
5... O-O {[%clk 0:02:58.5]} 6. O-O {[%clk 0:02:58.1]} 6... c6 {[%clk 0:02:55.5]}
7. Bb3 {[%clk 0:02:57.7]} 7... a5 {[%clk 0:02:54.5]} 8. c3 {[%clk 0:02:50.9]}
8... a4 {[%clk 0:02:53.9]} 9. Bc2 {[%clk 0:02:51.4]} 9... Qc7 {[%clk 0:02:50.6]}
10. Re1 {[%clk 0:02:50.2]} 10... e5 {[%clk 0:02:50.1]} 11. Nbd2 {[%clk
0:02:48.1]} 11... h6 {[%clk 0:02:45.3]} 12. Nf1 {[%clk 0:02:38.9]} 12... Re8
{[%clk 0:02:42.4]} 13. Ng3 {[%clk 0:02:38.6]} 13... Nbd7 {[%clk 0:02:42.9]} 14.
h3 {[%clk 0:02:37.9]} 14... Nb6 {[%clk 0:02:38.1]} 15. Be3 {[%clk 0:02:38.1]}
15... Kh7 {[%clk 0:02:28.9]} 16. Rad1 {[%clk 0:02:33.9]} 16... Be6 {[%clk
0:02:23.4]} 17. dxe5 {[%clk 0:02:26.1]} 17... dxe5 {[%clk 0:02:23]} 18. Nxe5
{[%clk 0:02:26.2]} 18... Bxa2 {[%clk 0:02:18.3]} 19. Ng4 {[%clk 0:02:20]} 19...
Nc4 {[%clk 0:02:09.6]} 20. Bxh6 {[%clk 0:01:52.3]} 20... Nxg4 {[%clk 0:01:41.1]}
21. Bxg7 {[%clk 0:01:52]} 21... Nxf2 {[%clk 0:01:22.7]} 22. Qxf2 {[%clk
0:01:34.7]} 22... Kxg7 {[%clk 0:01:22.3]} 23. e5 {[%clk 0:01:18.6]} 23... Rxe5
{[%clk 0:01:14.1]} 24. Rxe5 {[%clk 0:01:16.2]} 24... Nxe5 {[%clk 0:01:04.3]} 25.
Qf4 {[%clk 0:01:14.3]} 25... Re8 {[%clk 0:00:56.5]} 26. Qg5 {[%clk 0:01:05.5]}
26... Qb6+ {[%clk 0:00:52.2]} 27. Kh1 {[%clk 0:00:59.1]} 27... Qf2 {[%clk
0:00:44.3]} 28. Nh5+ {[%clk 0:00:56.1]} 28... Kh7 {[%clk 0:00:36.6]} 29. Nf6+
{[%clk 0:00:54.7]} 1-0

[Event "*** SCC Grand Prix: Titled Tuesday Blitz"]
[Site "Chess.com"]
[Date "2020.06.02"]
[Round "2"]
[White "AlanZhang"]
[Black "rynos0411"]
[Result "0-1"]
[WhiteElo "2243"]
[BlackElo "2454"]
[TimeControl "180+1"]
[EndTime "10:16:26 PDT"]
[Termination "rynos0411 won by resignation"]

1. e4 {[%clk 0:03:00.9]} 1... c6 {[%clk 0:02:59.8]} 2. d4 {[%clk 0:02:58.4]}
2... d5 {[%clk 0:02:59.9]} 3. Nc3 {[%clk 0:02:57.7]} 3... dxe4 {[%clk
0:02:59.8]} 4. Nxe4 {[%clk 0:02:57.4]} 4... Nf6 {[%clk 0:02:59.5]} 5. Nxf6+
{[%clk 0:02:57.5]} 5... exf6 {[%clk 0:03:00.4]} 6. g3 {[%clk 0:02:57.6]} 6...
Be6 {[%clk 0:03:00.2]} 7. Bg2 {[%clk 0:02:55.5]} 7... Bd6 {[%clk 0:02:58.2]} 8.
Ne2 {[%clk 0:02:52.1]} 8... O-O {[%clk 0:02:58.2]} 9. O-O {[%clk 0:02:51.5]}
9... Re8 {[%clk 0:02:54.4]} 10. Qd3 {[%clk 0:02:50.7]} 10... Qc7 {[%clk
0:02:52.5]} 11. Bf4 {[%clk 0:02:46.6]} 11... Nd7 {[%clk 0:02:52.6]} 12. c4
{[%clk 0:02:43.2]} 12... Rad8 {[%clk 0:02:38.6]} 13. Bxd6 {[%clk 0:02:04.8]}
13... Qxd6 {[%clk 0:02:38.3]} 14. Rad1 {[%clk 0:01:38.5]} 14... b6 {[%clk
0:02:20.8]} 15. Nf4 {[%clk 0:01:32.8]} 15... Nf8 {[%clk 0:02:09.7]} 16. d5
{[%clk 0:01:19]} 16... Bg4 {[%clk 0:02:02]} 17. Rde1 {[%clk 0:01:10.5]} 17...
cxd5 {[%clk 0:01:53.2]} 18. cxd5 {[%clk 0:01:05]} 18... Ng6 {[%clk 0:01:47.7]}
19. Nxg6 {[%clk 0:00:51.5]} 19... hxg6 {[%clk 0:01:44.8]} 20. h3 {[%clk
0:00:43.6]} 20... Bf5 {[%clk 0:01:44]} 21. Qc4 {[%clk 0:00:40.9]} 21... Bd7
{[%clk 0:01:29.3]} 22. Qa6 {[%clk 0:00:25.3]} 22... Rxe1 {[%clk 0:00:51.1]} 23.
Rxe1 {[%clk 0:00:26.2]} 23... Qb4 {[%clk 0:00:51.6]} 24. Qxa7 {[%clk 0:00:17.7]}
24... Qxe1+ {[%clk 0:00:51.1]} 25. Kh2 {[%clk 0:00:16]} 0-1

[Event "*** SCC Grand Prix: Titled Tuesday Blitz"]
[Site "Chess.com"]
[Date "2020.06.02"]
[Round "2"]
[White "MartinMatthiesen"]
[Black "andy_rekt"]
[Result "1-0"]
[WhiteElo "2364"]
[BlackElo "2021"]
[TimeControl "180+1"]
[EndTime "10:16:26 PDT"]
[Termination "MartinMatthiesen won by resignation"]

1. d4 {[%clk 0:02:58.1]} 1... e6 {[%clk 0:02:59.6]} 2. c4 {[%clk 0:02:56.2]}
2... Nf6 {[%clk 0:02:59.1]} 3. Nf3 {[%clk 0:02:55.3]} 3... Bb4+ {[%clk
0:02:58.8]} 4. Bd2 {[%clk 0:02:54.7]} 4... a5 {[%clk 0:02:58.6]} 5. g3 {[%clk
0:02:53]} 5... b6 {[%clk 0:02:58.4]} 6. Bg2 {[%clk 0:02:52.2]} 6... Bb7 {[%clk
0:02:59]} 7. O-O {[%clk 0:02:51.7]} 7... O-O {[%clk 0:02:55.3]} 8. Nc3 {[%clk
0:02:41.4]} 8... d6 {[%clk 0:02:51.3]} 9. Qc2 {[%clk 0:02:37.6]} 9... Nbd7
{[%clk 0:02:34]} 10. Rfe1 {[%clk 0:02:24.2]} 10... Qe7 {[%clk 0:02:17.9]} 11. e4
{[%clk 0:02:18.5]} 11... e5 {[%clk 0:02:10.8]} 12. Nd5 {[%clk 0:01:54.1]} 12...
Nxd5 {[%clk 0:02:03.3]} 13. cxd5 {[%clk 0:01:53.3]} 13... Bxd2 {[%clk
0:01:57.3]} 14. Qxd2 {[%clk 0:01:47.1]} 14... exd4 {[%clk 0:01:41.1]} 15. Nxd4
{[%clk 0:01:45.3]} 15... Nc5 {[%clk 0:01:41.2]} 16. f4 {[%clk 0:01:40.2]} 16...
f6 {[%clk 0:01:38.7]} 17. Re3 {[%clk 0:01:39.2]} 17... Rfe8 {[%clk 0:01:37.8]}
18. Rae1 {[%clk 0:01:38.2]} 18... Qf7 {[%clk 0:01:36.8]} 19. b3 {[%clk 0:01:27]}
19... Ba6 {[%clk 0:00:50.2]} 20. a3 {[%clk 0:01:22.9]} 20... Rab8 {[%clk
0:00:37.3]} 21. b4 {[%clk 0:01:20.7]} 21... axb4 {[%clk 0:00:36.5]} 22. axb4
{[%clk 0:01:21.6]} 22... Nd7 {[%clk 0:00:35.9]} 23. Rc1 {[%clk 0:01:13.9]} 23...
Rec8 {[%clk 0:00:31.2]} 24. Bh3 {[%clk 0:01:12]} 24... Kh8 {[%clk 0:00:29]} 25.
Rec3 {[%clk 0:01:04.4]} 25... Rb7 {[%clk 0:00:11.4]} 26. b5 {[%clk 0:01:00.3]}
1-0

[Event "*** SCC Grand Prix: Titled Tuesday Blitz"]
[Site "Chess.com"]
[Date "2020.06.02"]
[Round "2"]
[White "SoltaniciR"]
[Black "gahryman"]
[Result "0-1"]
[WhiteElo "2462"]
[BlackElo "2702"]
[TimeControl "180+1"]
[EndTime "10:16:27 PDT"]
[Termination "gahryman won by resignation"]

1. e4 {[%clk 0:03:00.9]} 1... c5 {[%clk 0:02:59.5]} 2. Nf3 {[%clk 0:03:00.8]}
2... e6 {[%clk 0:02:59.7]} 3. d4 {[%clk 0:03:00.5]} 3... cxd4 {[%clk 0:03:00.6]}
4. Nxd4 {[%clk 0:03:00.8]} 4... Nc6 {[%clk 0:03:01.1]} 5. Nc3 {[%clk 0:03:00.7]}
5... Qc7 {[%clk 0:03:01.1]} 6. Be2 {[%clk 0:02:55]} 6... Nf6 {[%clk 0:02:57.3]}
7. O-O {[%clk 0:02:53.6]} 7... a6 {[%clk 0:02:57.3]} 8. Be3 {[%clk 0:02:52.8]}
8... b5 {[%clk 0:02:57]} 9. Nxc6 {[%clk 0:02:49.2]} 9... dxc6 {[%clk 0:02:57.9]}
10. f4 {[%clk 0:02:00.7]} 10... Be7 {[%clk 0:02:56]} 11. e5 {[%clk 0:02:00.2]}
11... Nd5 {[%clk 0:02:56.2]} 12. Nxd5 {[%clk 0:01:59.1]} 12... cxd5 {[%clk
0:02:57.1]} 13. Bd4 {[%clk 0:01:55.8]} 13... O-O {[%clk 0:02:53.8]} 14. c3
{[%clk 0:01:47.4]} 14... Bd7 {[%clk 0:02:51.2]} 15. Bd3 {[%clk 0:01:47.2]} 15...
Bc5 {[%clk 0:02:50.6]} 16. Qd2 {[%clk 0:01:44.2]} 16... g6 {[%clk 0:02:37.5]}
17. Kh1 {[%clk 0:01:43.5]} 17... Bxd4 {[%clk 0:02:12.5]} 18. cxd4 {[%clk
0:01:42.6]} 18... Qb6 {[%clk 0:02:13.4]} 19. Qe3 {[%clk 0:01:33.2]} 19... b4
{[%clk 0:02:13.1]} 20. Rac1 {[%clk 0:01:30.8]} 20... Bb5 {[%clk 0:02:11.7]} 21.
Rc5 {[%clk 0:01:29.6]} 21... Rfc8 {[%clk 0:02:05.6]} 22. Rfc1 {[%clk 0:01:28.2]}
22... Rxc5 {[%clk 0:02:02.6]} 23. Rxc5 {[%clk 0:01:27.5]} 23... Qb7 {[%clk
0:01:42.8]} 24. Kg1 {[%clk 0:01:00.3]} 24... Rc8 {[%clk 0:01:35]} 25. Bxb5
{[%clk 0:00:57]} 25... Rxc5 {[%clk 0:01:31.2]} 26. dxc5 {[%clk 0:00:56.3]} 26...
Qxb5 {[%clk 0:01:31.3]} 27. Qc1 {[%clk 0:00:48]} 27... Qc6 {[%clk 0:01:23.9]}
28. Kf2 {[%clk 0:00:41.7]} 28... Kf8 {[%clk 0:01:23.3]} 29. Ke3 {[%clk
0:00:41.1]} 29... Ke7 {[%clk 0:01:23.2]} 30. Kd4 {[%clk 0:00:41]} 30... Qa4
{[%clk 0:01:13.9]} 31. c6 {[%clk 0:00:39]} 31... b3+ {[%clk 0:01:13.6]} 32. Ke3
{[%clk 0:00:35.8]} 32... Qe4+ {[%clk 0:00:56.2]} 33. Kf2 {[%clk 0:00:35.2]}
33... Qc2+ {[%clk 0:00:55.9]} 0-1

[Event "*** SCC Grand Prix: Titled Tuesday Blitz"]
[Site "Chess.com"]
[Date "2020.06.02"]
[Round "2"]
[White "Dr-Bassem"]
[Black "Chessmatus"]
[Result "1-0"]
[WhiteElo "2791"]
[BlackElo "2522"]
[TimeControl "180+1"]
[EndTime "10:16:28 PDT"]
[Termination "Dr-Bassem won by resignation"]

1. e4 {[%clk 0:03:00.9]} 1... e5 {[%clk 0:02:59.3]} 2. Nf3 {[%clk 0:03:00.8]}
2... Nc6 {[%clk 0:02:59.3]} 3. Bc4 {[%clk 0:03:01.5]} 3... Bc5 {[%clk 0:02:59]}
4. O-O {[%clk 0:02:59.9]} 4... Nf6 {[%clk 0:02:58.4]} 5. d3 {[%clk 0:03:00.6]}
5... a6 {[%clk 0:02:54.1]} 6. c3 {[%clk 0:03:00.4]} 6... d6 {[%clk 0:02:51.2]}
7. Re1 {[%clk 0:03:01]} 7... O-O {[%clk 0:02:49.3]} 8. h3 {[%clk 0:02:56.5]}
8... h6 {[%clk 0:02:27.7]} 9. Nbd2 {[%clk 0:02:51.6]} 9... Na5 {[%clk
0:01:57.1]} 10. Bd5 {[%clk 0:02:27.9]} 10... Nc6 {[%clk 0:01:49.2]} 11. Bb3
{[%clk 0:02:23.4]} 11... Ba7 {[%clk 0:01:41.8]} 12. Nf1 {[%clk 0:02:21.8]} 12...
Nh5 {[%clk 0:01:38.1]} 13. d4 {[%clk 0:02:17.6]} 13... Qf6 {[%clk 0:01:24.9]}
14. Ne3 {[%clk 0:02:12.4]} 14... exd4 {[%clk 0:00:58.5]} 15. Nd5 {[%clk
0:02:10.8]} 15... Qd8 {[%clk 0:00:55.8]} 16. cxd4 {[%clk 0:02:06.2]} 16... Nf6
{[%clk 0:00:54.3]} 17. Bf4 {[%clk 0:01:35.5]} 17... Re8 {[%clk 0:00:40.8]} 18.
Nc3 {[%clk 0:01:34.4]} 18... Na5 {[%clk 0:00:23.9]} 19. Bc2 {[%clk 0:01:26.8]}
19... Be6 {[%clk 0:00:07.4]} 20. Qd3 {[%clk 0:01:24.1]} 20... c5 {[%clk
0:00:03.6]} 21. d5 {[%clk 0:01:20.1]} 21... c4 {[%clk 0:00:04]} 22. Qd2 {[%clk
0:01:15.9]} 22... Bc8 {[%clk 0:00:03.7]} 23. Bxd6 {[%clk 0:01:02.9]} 23... Qxd6
{[%clk 0:00:03.5]} 24. e5 {[%clk 0:01:03.3]} 24... Qd8 {[%clk 0:00:03.5]} 25.
exf6 {[%clk 0:01:03.4]} 25... Rxe1+ {[%clk 0:00:03.2]} 26. Rxe1 {[%clk
0:01:04.3]} 26... gxf6 {[%clk 0:00:03.1]} 1-0

[Event "*** SCC Grand Prix: Titled Tuesday Blitz"]
[Site "Chess.com"]
[Date "2020.06.02"]
[Round "2"]
[White "Galileo22"]
[Black "DucksParadise"]
[Result "1-0"]
[WhiteElo "2371"]
[BlackElo "2054"]
[TimeControl "180+1"]
[EndTime "10:16:28 PDT"]
[Termination "Galileo22 won on time"]

1. d4 {[%clk 0:03:00.9]} 1... Nf6 {[%clk 0:02:55.2]} 2. c4 {[%clk 0:03:00.7]}
2... e6 {[%clk 0:02:53.9]} 3. Nf3 {[%clk 0:02:59.5]} 3... Bb4+ {[%clk
0:02:51.2]} 4. Bd2 {[%clk 0:02:57.7]} 4... a5 {[%clk 0:02:49.5]} 5. g3 {[%clk
0:02:55.8]} 5... Nc6 {[%clk 0:02:37.1]} 6. Bg2 {[%clk 0:02:46]} 6... d6 {[%clk
0:02:36.9]} 7. O-O {[%clk 0:02:36.9]} 7... e5 {[%clk 0:02:28]} 8. d5 {[%clk
0:02:23.1]} 8... Nb8 {[%clk 0:02:08.4]} 9. Bc1 {[%clk 0:02:19.4]} 9... O-O
{[%clk 0:02:01.8]} 10. h3 {[%clk 0:02:18.8]} 10... Nbd7 {[%clk 0:01:28.5]} 11.
a3 {[%clk 0:02:15.9]} 11... Bc5 {[%clk 0:01:28]} 12. Nc3 {[%clk 0:02:16]} 12...
Re8 {[%clk 0:01:22.2]} 13. e4 {[%clk 0:02:10.7]} 13... Nb6 {[%clk 0:00:57.6]}
14. b3 {[%clk 0:02:03.1]} 14... c6 {[%clk 0:00:37.9]} 15. Rb1 {[%clk 0:01:56.6]}
15... cxd5 {[%clk 0:00:37.6]} 16. cxd5 {[%clk 0:01:55.5]} 16... Qc7 {[%clk
0:00:28.7]} 17. Qd3 {[%clk 0:01:39.8]} 17... Bd7 {[%clk 0:00:15.5]} 18. Ne2
{[%clk 0:01:10.4]} 18... Rac8 {[%clk 0:00:04.5]} 19. b4 {[%clk 0:00:55.1]} 19...
axb4 {[%clk 0:00:05.4]} 20. axb4 {[%clk 0:00:54.9]} 1-0